Cogmind - Beta 14 @@@ ROGUE MODE // 2024.08.16 @ 04:20:49 Player: Tim Result: Destroyed by as-80572 with Assembled Heavy Rifle Performance ------------- Evolutions (0) 0 Regions Visited (2) 400 Robots Destroyed (15) 75 Value Destroyed (302) 302 Prototype IDs (0) 0 Alien Tech Used (0) 0 Bonus (60) 60 TOTAL SCORE: 837 Bonus ------- Follower Combat Kills 60 Cogmind --------- Core Integrity 0/250 Matter 219/300 Energy 97/125 System Corruption 0% Temperature Cool (0) Movement Core (450) Ox8 Location -10/Mines Parts ------- > --- POWER (1) -------- Light Ion Engine > --- PROPULSION (2) --- (None) > --- UTILITY (2) ------ Large Storage Unit Core Shielding > --- WEAPON (2) ------- Light Assault Rifle > --- INVENTORY (15) --- Light Ion Engine Light Ion Engine Medium Storage Unit Medium Storage Unit Large Storage Unit Huge Storage Unit Huge Storage Unit High-capacity Matter Pod (200) Structural Scanner Sensor Array Targeting Computer Core Shielding Peak State ------------ > --- POWER ------------ Light Ion Engine > --- PROPULSION ------- Aluminum Leg Aluminum Leg > --- UTILITY ---------- Huge Storage Unit Sensor Array > --- WEAPON ----------- Light Assault Rifle Light Assault Rifle > --- INVENTORY -------- Light Ion Engine Light Ion Engine Aluminum Leg Small Storage Unit Small Storage Unit Small Storage Unit Medium Storage Unit Medium Storage Unit Large Storage Unit Large Storage Unit Huge Storage Unit High-capacity Matter Pod Structural Scanner Sensor Array Sensor Array Targeting Computer Core Shielding Core Shielding Light Assault Rifle Light Assault Rifle [Rating: 9] Favorites ----------- Power Light Ion Engine Engine Light Ion Engine Propulsion Aluminum Leg Treads Light Treads Leg Aluminum Leg Utility Sensor Array Device Sensor Array Storage Large Storage Unit Protection Core Shielding Weapon Light Assault Rifle Ballistic Gun Light Assault Rifle Launcher Rocket Launcher Build | -11 -10 -10 ------- Run | Yrd Mat Min Slots Evolved . | . . . Power . | . . . Propulsion . | . . . Utility . | . . . Weapon . | . . . Parts Attached 31 | 6 13 12 Power 3 | 1 1 1 Engine 3 | 1 1 1 Core . | . . . Reactor . | . . . Propulsion 10 | 2 6 2 Treads 2 | 2 . . Leg 8 | . 6 2 Wheel . | . . . Hover . | . . . Flight . | . . . Utility 11 | 1 6 4 Device 3 | . 2 1 Storage 7 | 1 4 2 Processor . | . . . Hackware . | . . . Protection 1 | . . 1 Artifact . | . . . Weapon 7 | 2 . 5 Energy Gun . | . . . Energy Cannon . | . . . Ballistic Gun 6 | 2 . 4 Ballistic Cannon . | . . . Launcher 1 | . . 1 Special Weapon . | . . . Impact Weapon . | . . . Slashing Weapon . | . . . Piercing Weapon . | . . . Special Melee Weapon . | . . . Unidentified Prototypes . | . . . Parts Lost 8 | . 2 6 Power . | . . . Propulsion 4 | . 1 3 Utility 1 | . 1 . Weapon 3 | . . 3 Highest Loss Streak 6 | . 1 6 To Critical Strikes . | . . . Average Slot Usage (%) 97 | . 94 99 Engine 14 | . 14 14 Treads 6 | . 13 . Leg 20 | . 11 27 Device 12 | . 11 14 Storage 14 | . 14 14 Ballistic Gun 26 | . 28 25 Launcher 1 | . . 1 Peak Build Rating 9 | 6 8 9 Average Rating 7 | 4 6 8 On Entrance 4 | . 6 8 Naked Turns . | . . . Heaviest Build 86 | 10 26 86 Greatest Support 40 | 40 40 20 Greatest Overweight (x) 4 | . 1 4 Average Overweight (x) . | . . 1 Largest Inventory Capacity 25 | 8 25 25 Average Capacity 14 | 7 9 19 Most Carried 20 | 3 15 20 Average Carried 12 | . 7 16 Final Capacity 15 | 8 15 15 Final Carried 15 | 1 15 12 Class Distribution -------------------- 100% | Mutant Dominant Class ---------------- Mutant | -10/Materials Mutant | -10/Mines Resources | -11 -10 -10 ----------- Run | Yrd Mat Min Matter Collected 709 | 230 143 336 Remotely . | . . . Salvage Created 341 | . 256 85 Parts 30 | . 22 8 Haulers Intercepted . | . . . Recyclers Shooed . | . . . Parts Field Recycled . | . . . Retrieved Matter . | . . . Parts Self-Destructed . | . . . Prevented . | . . . Kills | -11 -10 -10 ------- Run | Yrd Mat Min Combat Hostiles Destroyed 14 | . 10 4 Guns 11 | . 7 4 AOE 3 | . 3 . Classes Destroyed 5 | . 3 2 Builder 2 | . 1 1 Swarmer 8 | . 6 2 Grunt 4 | . 4 . Demolisher 1 | . . 1 Assembled 1 | . . 1 Best Kill Streak 3 | . 3 2 Combat Bots Only 3 | . 3 2 Max Kills in Single Turn 3 | . 3 2 Gunslinging 1 | . . 1 Exploded 3 | . 3 . Melee . | . . . Uniques/NPCs Destroyed . | . . . Combat | -11 -10 -10 -------- Run | Yrd Mat Min Hostile Shots Fired 111 | . 68 43 Missed 31 | . 20 11 Damage Taken 1258 | . 597 661 Core 256 | . 154 102 Absorbed by Shields . | . . . Redirected to Shielding 4 | . . 4 Core Remaining (%) 100 | 100 . . Volleys Fired 41 | . 23 18 Largest 2 | . 2 2 Hottest 53 | . 40 53 Shots Fired 81 | . 46 35 Gun 77 | . 46 31 Cannon . | . . . Launcher 4 | . . 4 Special . | . . . Kinetic 77 | . 46 31 Thermal . | . . . Explosive 4 | . . 4 Electromagnetic . | . . . Robot Hit Streak 16 | . 16 5 Robot Miss Streak 3 | . 3 2 Penetration Max . | . . . Secondary Targets 2 | . 1 1 Max Gunslinging Chain 1 | . 1 1 Shots Hit Robots 54 | . 32 22 Core Hits 37 | . 19 18 Critical Kills . | . . . Critical Parts Destroyed . | . . . Critical Strikes . | . . . Melee Attacks . | . . . Impact . | . . . Slashing . | . . . Piercing . | . . . Sneak Attacks . | . . . Combat Hostiles . | . . . Follow-up Attacks . | . . . Damage Inflicted 813 | . 518 295 Guns 446 | . 270 176 Cannons . | . . . Explosions 344 | . 247 97 Melee . | . . . Ramming 23 | . 1 22 Kinetic 446 | . 270 176 Thermal 247 | . 247 . Explosive 97 | . . 97 Electromagnetic . | . . . Impact . | . . . Slashing . | . . . Piercing . | . . . Highest Corruption . | . . . Average Corruption . | . . . Corruption Purged . | . . . Corruption Blocked . | . . . Overload Shots . | . . . Overflow Damage 39 | . 28 11 Projectiles . | . . . Explosions 39 | . 28 11 Melee . | . . . Knockbacks . | . . . Impact . | . . . Kinetic . | . . . Secondary . | . . . Self-Inflicted Damage 114 | . 114 . Shots 1 | . 1 . Rammed 2 | . 2 . Targets Rammed 5 | . 2 3 Kicked 3 | . . 3 Crushed . | . . . Highest Temperature 32 | . 15 32 Average Temperature 12 | . 9 15 Received Heat Transfer 236 | . 129 107 Siege Activations . | . . . Robots Corrupted . | . . . Combat Hostiles . | . . . Parts Fried . | . . . Impact Corruptions . | . . . Robots Melted . | . . . Combat Hostiles . | . . . Parts Melted . | . . . Heat Transferred 150 | . 150 . Parts Sabotaged . | . . . Parts Stolen . | . . . Parts Stripped . | . . . Power Chain Reactions . | . . . Alert | -11 -10 -10 ------- Run | Yrd Mat Min Peak Influence 170 | . 170 58 Initial 5 | . . 5 Average 23 | . 32 17 Maximum Alert Level . | . . . Low Security (%) 100 | 100 100 100 Level 1 . | . . . Level 2 . | . . . Level 3 . | . . . Level 4 . | . . . Level 5 . | . . . High Security . | . . . Max Security . | . . . Squads Dispatched 1 | . 1 . Investigation . | . . . Extermination . | . . . Reinforcement 1 | . 1 . Assault . | . . . Garrison . | . . . Intercept . | . . . Searches Triggered . | . . . Construction Impeded . | . . . Haulers Reinforced . | . . . Active Scanning Responses . | . . . Cargo Convoy Interrupts . | . . . Stealth | -11 -10 -10 --------- Run | Yrd Mat Min Distress Signals 1 | . 1 . Communications Jammed . | . . . Distress Signals . | . . . Times Spotted 34 | . 21 13 Peak Tracking Total 8 | . 4 8 Tactical Retreats 2 | . 1 1 Traps | -11 -10 -10 ------- Run | Yrd Mat Min Traps Triggered 1 | . 1 . Indirectly . | . . . Trap Hack Attempts . | . . . Triggered . | . . . Disarmed . | . . . Reprogrammed . | . . . Reused . | . . . Traps Extracted . | . . . Installed . | . . . Triggered . | . . . Machines | -11 -10 -10 ---------- Run | Yrd Mat Min Machines Disabled 1 | . 1 . Max in Single Turn 1 | . 1 . Machines Repaired . | . . . Machines Dismantled . | . . . Machines Sabotaged . | . . . Overloaded Fab Kills . | . . . Hacking | -11 -10 -10 --------- Run | Yrd Mat Min Machines Accessed 4 | . 4 . Terminals 2 | . 2 . Fabricators . | . . . Repair Stations . | . . . Recycling Units 2 | . 2 . Scanalyzers . | . . . Garrison Access . | . . . Total Hacks 8 | . 8 . Successful 7 | . 7 . Failed 1 | . 1 . Catastrophic . | . . . Database Lockouts . | . . . Manual . | . . . Terminals 5 | . 5 . Fabricators . | . . . Repair Stations . | . . . Recycling Units 3 | . 3 . Scanalyzers . | . . . Garrison Access . | . . . Terminal Hacks 4 | . 4 . Record 2 | . 2 . Alert Level 1 | . 1 . Unreport Threat 1 | . 1 . Fabricator Hacks . | . . . Repair Station Hacks . | . . . Recycling Unit Hacks 3 | . 3 . Report Inventory 2 | . 2 . Retrieve Components 1 | . 1 . Scanalyzer . | . . . Garrison Access Hacks . | . . . Unauthorized Hacks . | . . . Terminals . | . . . Fabricators . | . . . Repair Stations . | . . . Recycling Units . | . . . Scanalyzers . | . . . Garrison Access . | . . . Data Cores Recovered . | . . . Used . | . . . Hacking Detections 3 | . 3 . Full Trace Events . | . . . Feedback Events . | . . . Feedback Blocked . | . . . Robot Schematics Acquired . | . . . Robots Built . | . . . Authchips . | . . . Time . | . . . Total Robot Build Rating . | . . . Part Schematics Acquired . | . . . Parts Built . | . . . Authchips . | . . . Time . | . . . Total Part Build Rating . | . . . Parts Repaired . | . . . Time . | . . . Parts Recycled . | . . . Recycled Matter . | . . . Retrieved Matter . | . . . Retrieved Components 8 | . 8 . Parts Scanalyzed . | . . . Part Schematics Acquired . | . . . Parts Damaged . | . . . Bothacking | -11 -10 -10 ------------ Run | Yrd Mat Min Used RIF Installer . | . . . Robots Hacked . | . . . Non-combat . | . . . Combat . | . . . Robot Hacks Applied . | . . . Relay Couplers Released . | . . . Fabnet Peak Effective % . | . . . Robots Rewired . | . . . Allies Hacked . | . . . Hacks Repelled . | . . . Allies | -11 -10 -10 -------- Run | Yrd Mat Min Total Allies 1 | . . 1 Largest Group 1 | . . 1 Highest-Rated Group 31 | . . 31 Highest-Rated Ally 31 | . . 31 Total Orders . | . . . Ally Attacks 5 | . . 5 Total Damage 82 | . . 82 Kills 2 | . . 2 Allies Corrupted . | . . . Allies Melted . | . . . Intel | -11 -10 -10 ------- Run | Yrd Mat Min Robot Analysis Total . | . . . Derelict Logs Recovered 1 | . . 1 Drone Launches . | . . . Drone Recoveries . | . . . Exploration | -11 -10 -10 ------------- Run | Yrd Mat Min Turns Passed 2215 | 62 984 1169 Spaces Moved 1016 | 36 550 430 Core 7 | 7 . . Treads 334 | 29 305 . Legs 675 | . 245 430 Wheels . | . . . Hover . | . . . Flight . | . . . Fastest Speed 50 | 50 120 190 Average Speed 196 | 138 156 252 Slowest Speed 400 | 160 190 400 Overloaded Moves . | . . . Propulsion Burnouts . | . . . Robots Hopped . | . . . Cave-ins Triggered . | . . . Exploration Rate (%) 47 | 3 67 71 Regions Visited 2 Branch Regions 1 Pre-discovered Areas 2 | . . 2 Known Exits Taken . | . . . Unknown Exits Taken 2 | 1 1 . Scrap Searched 3 | . . 3 Spaces Dug . | . . . Terrain Destroyed 58 | . 25 33 Melee . | . . . Projectile . | . . . AOE 58 | . 25 33 Terrain Rammed . | . . . Walls Destroyed . | . . . Machines Disabled . | . . . Actions | -11 -10 -10 --------- Run | Yrd Mat Min Total 1165 | 48 638 479 Wait 22 | . 21 1 Move 1014 | 35 549 430 Hop . | . . . Pick Up 33 | 7 19 7 Fast Attach 2 | . 2 . Attach 11 | 6 2 3 Detach . | . . . Swap 18 | . 9 9 Drop 19 | . 11 8 Fire 41 | . 23 18 Melee . | . . . Ram . | . . . Kick 3 | . . 3 Crush 2 | . 2 . Escape Stasis . | . . . Rewire . | . . . Trap . | . . . Miscellaneous . | . . . Route ------- -11/Scrapyard -10/Materials (discovered 3 exits: [*Mat x2] / [*Min]) -10/Mines (discovered 3 exits: [*Mat x2] / [Sub]) History --------- Turn | Location | Event 6 | -11/Scrapyard | Discovered new exit (range 15) 63 | -11/Scrapyard | Entered Materials 98 | -10/Materials | Core integrity fell below 50% 303 | -10/Materials | Build established: Mutant 621 | -10/Materials | Discovered new exit (range 9) 771 | -10/Materials | Discovered new exit (range 15) 934 | -10/Materials | Discovered new exit (range 15) 1047 | -10/Materials | Entered Mines 1066 | -10/Mines | Escorted by a lone wolf Derelict 1086 | -10/Mines | Learned location of Storage (-8) 1122 | -10/Mines | Discovered new exit (range 8) 1388 | -10/Mines | Discovered new exit (range 16) 1619 | -10/Mines | Discovered new exit (range 14) 2026 | -10/Mines | Received a Rocket Launcher from a helpful Derelict 2144 | -10/Mines | Assembled infested the area 2149 | -10/Mines | Assisted by a Guerilla fighting off Assembled 2184 | -10/Mines | Core integrity fell below 20% 2216 | -10/Mines | Destroyed by as-80572 with Assembled Heavy Rifle Last Messages --------------- 02190_ U-05 Engineer lays Concrete. 02191_ Rocket Launcher destroyed. 02192_ U-05 Engineer builds a Wall. 02194_ The unstable cave ceiling collapses. 02195_ U-05 Engineer lays Concrete. 02196_ The unstable cave ceiling collapses. 02196_ U-05 Engineer builds a Wall. 02197_ The unstable cave ceiling collapses. 02199_ as-33813 destroyed. 02201_ The unstable cave ceiling collapses. 02201_ U-05 Engineer builds a Wall. 02202_ The unstable cave ceiling collapses. 02202_ D-53 Grenadier destroyed. 02204_ Aluminum Leg destroyed. 02205_ U-05 Engineer lays Concrete. 02206_ The unstable cave ceiling collapses. 02207_ as-36080 destroyed. 02208_ Lgt. Assault Rifle destroyed. 02209_ The unstable cave ceiling collapses. 02214_ Lgt. Assault Rifle destroyed. Map ----- +----------------------------------------------------+ | | | | | | | | | | | | | | | | | | | | | | | | | ?????????????????????????????????????????????????? | | ?????????????????????????????????????????????????? | | ?????????????????????????????????????????????????? | | ?????????????????????????????????????????????????? | | ?????????????????????????????????????????????????? | | ?????????????????????????????????????????????????? | | ???????????????####?#########????????????????????? | | ??????????####################???????????????????? | | ??????????##### # ### ####??????????????????? | | ?????????? aa # # ####?????????????????? | | ???????????## # ########????????????? | | ???????????## # #####????????????? | | ???????????## a ###???????????? | | ???????????## @ ## # # ##########???? | | ???????????## # ##########???? | | ???????????## # % % ##???? | | ??????????### # ### # ######### #### | | ??????????## ########### # ###### #### | | ???????### #??####### # | | ??????### ##???????#### # # # | | ??????## """ ##?######### ### # ###### ## | | ?????### """ ############ ###### ###### ## | | ?????## """ ####### ### ###### ##????? | | ????? ?? ###?## ####### ##????? | | ????? ???? ##???## ########%%##?????### | | ??????????? ###???## ## ####! ##?????### | | ??????????? ##????### ##???????? | | ??????????? ##??????### [ #######???????? | | ??????????? ##??????## ###### ???????? | | ????????????????????## ####????????????? | | ????????????????????## ## ####?????????????? | | ????????????????????## ###########??????????????? | | ????????????????????## ##########???????????????? | | ????????????????????## ##???????????????????????? | | ????????????????????## ############??? ????????? | | ????????????????????## ############??? ??#####?? | | ????????????????????##=! ##??? ########? | | ???????????????????### ######### ##??? #### ###? | +----------------------------------------------------+ Best States ------------- Heat Dissipation 25 Energy Generation 10 Energy Capacity 125 Matter Stores 300 Matter Capacity 300 Sight Range 16 Robot Scan Range 14 Terrain Scan Density 10 Evasion (%) 55 Recoil Reduction 2 Item Schematics ----------------- None Robot Schematics ------------------ None Fabricated ------------ Nothing Alien Tech Used ----------------- None Achievements -------------- None Challenges ------------ None Game ------ Seed MakeshiftGatlingBox Manual? 0 Play Time 00:30:31 Cumulative 14.1 hours Start 2024.08.16 @ 03:45:37 End 2024.08.16 @ 04:20:49 Sessions 1 Manual Loads 0 Difficulty Rogue Special Mode None Game No. 35 Rogue 35 Adventurer 0 Explorer 0 Win Type - Total 0 Types 0/0/0/0/0/0/0/0/0 Lore% 11 Gallery% 13 Achievement% 10 Wizard Run 0 Options --------- Layout 0 ASCII 0 Keyboard 0 Movement Numpad Keybinds 0 Fullscreen 1 Font 24/Smallcaps Map View 113x50 Zoom Use 0% Tactical HUD 1 Map Filters NONE Filters NONE Steam 1 RUN: 1ecfc39e-a664-4d8b-b2d5-50c041c52ace